{"text_format":"1","workbook":"xlsx","n_sheets":2,"sheets":["Projektzeitachse","Legende"],"not_rendered":{"charts":0,"images":1,"macros":1,"external_links":0,"defined_names":7,"comments":0,"pivot_tables":0},"unopened":[],"bounds":{"document_bytes":16777216,"sheet_cells":100000,"rows_first":2000,"rows_last":500,"rows_between":2000,"halvings":0,"cell_chars":16384,"cell_head_chars":4096},"cells_cut":0,"cells_raw":0,"read":"whole","date_system":"1900"}

{"sheet":"Projektzeitachse","index":0,"n_rows":115,"n_cols":30,"rows_kept":115,"cut":false,"hidden":false,"merged":[[2,0,5,29]]}
[]
[]
["Swissmem Bildungsprogramm (Version 28. Januar 2019)"]
[]
[]
[]
[]
[null,null,null,null,null,null,null,"Neuer Eintrag:"]
[]
[]
[]
["KW","Semester","Spalte2","Bereich","Tätigkeit","Register LLD","Spalte44","1. Lehrjahr2","2. Lehrjahr","3. Lehrjahr","4. Lehrjahr","Spalte43","Bildungsverantwortlicher","Berufsbildner im Nebenamt","Fachvorgesetzter","Lernender","Spalte42","Beruf","AM","AU","ET","KA","KR","PM","MP","PR","Spalte1","Status","Spalte12","Notitzen"]
[0,0,null,"Absenzen","Ferien, Krankheit, Unfall",null,null,"X","X","X","X",null,"X","X","X","X",null,null,null,null,null,null,null,null,null,null,null,"offen"]
[0,0,null,"Betriebliche Ausbildung","Schwerpunktausbildung:\nAufbau der Handlungskompetenz 1 bzw. und 2\n(zu welche Zeit in welcher Abteilung)",3,null,null,null,"X","X",null,"X","X","X","X",null,null,null,null,null,null,null,null,null,null,null,"offen"]
[0,0,null,"Betriebliche Ausbildung","Überbetriebliche Kurse (Basis- und Ergänzungsausbildung):\nAufbau der Handlungskompetenzen Betrieb/Lehrwerkstatt\n(zu welche Zeit in welcher Abteilung)",3,null,"X","X","X","X",null,"X",null,null,null,null,null,null,null,null,null,null,null,null,null,null,"offen"]
[31,{"$f":"IF(Aktivitäten[[#This Row],[KW]]<31,\"2.Semester\",\"1. Semester\")","v":"1. Semester"},null,"Betriebliche Ausbildung","Einführen in die betrieblichen Vorschriften \nder Arbeitssicherheit und des Gesundheitsschutzes",2,null,"X",null,null,null,null,"X",null,null,"X",null,null,null,null,null,null,null,null,null,null,null,"offen"]
[31,{"$f":"IF(Aktivitäten[[#This Row],[KW]]<31,\"2.Semester\",\"1. Semester\")","v":"1. Semester"},null,"Betriebliche Ausbildung","Einführen in die internen Weisungen \nund Anordnungen",null,null,"X",null,null,null,null,"X",null,null,"X",null,null,null,null,null,null,null,null,null,null,null,"offen"]
[31,{"$f":"IF(Aktivitäten[[#This Row],[KW]]<31,\"2.Semester\",\"1. Semester\")","v":"1. Semester"},null,"Absenzen","Ferienplanung",null,null,"X","X","X","X",null,"X","X",null,"X",null,null,null,null,null,null,null,null,null,null,null,"offen"]
[31,{"$f":"IF(Aktivitäten[[#This Row],[KW]]<31,\"2.Semester\",\"1. Semester\")","v":"1. Semester"},null,"Betriebliche Ausbildung","Einführen der Lern -und Leistungsdokumentation:\nBildungsprogramm",3,null,"X",null,null,null,null,"X",null,null,"X",null,null,null,null,null,null,null,null,null,null,null,"offen"]
[31,{"$f":"IF(Aktivitäten[[#This Row],[KW]]<31,\"2.Semester\",\"1. Semester\")","v":"1. Semester"},null,"Betriebliche Ausbildung","Einführen der Lern -und Leistungsdokumentation:\nSchulllehrplan",5,null,"X",null,null,null,null,"X",null,null,"X",null,null,null,null,null,null,null,null,null,null,null,"offen"]
[31,{"$f":"IF(Aktivitäten[[#This Row],[KW]]<31,\"2.Semester\",\"1. Semester\")","v":"1. Semester"},null,"Betriebliche Ausbildung","Führen der Lern -und Leistungsdokumentation:\nSemseterzeugnisse und Erfahrungsnote",5,null,null,"X","X","X",null,"X",null,null,"X",null,null,null,null,null,null,null,null,null,null,null,"offen"]
[31,{"$f":"IF(Aktivitäten[[#This Row],[KW]]<31,\"2.Semester\",\"1. Semester\")","v":"1. Semester"},null,"Betriebliche Ausbildung","Führen der Lern -und Leistungsdokumentation:\nÜK-Kursprogramm und ÜK-Kursbericht",4,null,"X","X",null,null,null,"X",null,null,"X",null,null,null,null,null,null,null,null,null,null,null,"offen"]
[31,{"$f":"IF(Aktivitäten[[#This Row],[KW]]<31,\"2.Semester\",\"1. Semester\")","v":"1. Semester"},null,"Betriebliche Ausbildung","Einführen Aufbau und Führen der \nLern- und Leistungsdokumentation",3,null,"X",null,null,null,null,"X",null,null,"X",null,null,null,null,null,null,null,null,null,null,null,"offen"]
[31,{"$f":"IF(Aktivitäten[[#This Row],[KW]]<31,\"2.Semester\",\"1. Semester\")","v":"1. Semester"},null,"Betriebliche Ausbildung","Informieren über das Unternehmen und die Organisation",null,null,"X",null,null,null,null,"X",null,null,"X",null,null,null,null,null,null,null,null,null,null,null,"offen"]
[31,{"$f":"IF(Aktivitäten[[#This Row],[KW]]<31,\"2.Semester\",\"1. Semester\")","v":"1. Semester"},null,"Betriebliche Ausbildung","Informieren über den Aufbau des \nKompetenzen-Ressourcen-Kataloges",3,null,"X",null,null,null,null,"X",null,null,"X",null,null,null,null,null,null,null,null,null,null,null,"offen"]
[31,{"$f":"IF(Aktivitäten[[#This Row],[KW]]<31,\"2.Semester\",\"1. Semester\")","v":"1. Semester"},null,"Betriebliche Ausbildung","Informieren über die Grundbildung (Betrieb, ÜK u. Schule)",null,null,"X",null,null,null,null,"X",null,null,"X",null,null,null,null,null,null,null,null,null,null,null,"offen"]
[31,{"$f":"IF(Aktivitäten[[#This Row],[KW]]<31,\"2.Semester\",\"1. Semester\")","v":"1. Semester"},null,"Betriebliche Ausbildung","Überbetriebliche Kurse (Basis- und Ergänzungsausbildung):\nInformieren über die überbetriebliche Kurse",null,null,"X","X",null,null,null,"X",null,null,null,null,null,null,null,null,null,null,null,null,null,null,"offen"]
[31,{"$f":"IF(Aktivitäten[[#This Row],[KW]]<31,\"2.Semester\",\"1. Semester\")","v":"1. Semester"},null,"Betriebliche Ausbildung","Basisausbildung und Ergänzungsausbildung: \nInformieren über die Handlungskompetenzen",null,null,"X",null,null,null,null,"X",null,null,null,null,null,null,null,null,null,null,null,null,null,null,"offen"]
[31,{"$f":"IF(Aktivitäten[[#This Row],[KW]]<31,\"2.Semester\",\"1. Semester\")","v":"1. Semester"},null,"Betriebliche Ausbildung","Anhang 2:  Ausbildungsnachweis zu den begleitenden Massnahmen der Arbeitssicherheit und Gesundheitsschutz",2,null,null,null,null,null,null,null,null,null,null,null,null,null,null,null,null,null,null,null,null,null,"offen"]
[31,{"$f":"IF(Aktivitäten[[#This Row],[KW]]<31,\"2.Semester\",\"1. Semester\")","v":"1. Semester"},null,"Betriebliche Ausbildung","Anhang 2:  Begleitende Massnahmen der Arbeitssicherheit und Gesundheitsschutz",2,null,null,null,null,null,null,null,null,null,null,null,null,null,null,null,null,null,null,null,null,null,"offen"]
[32,{"$f":"IF(Aktivitäten[[#This Row],[KW]]<31,\"2.Semester\",\"1. Semester\")","v":"1. Semester"},null,"Betriebliche Ausbildung","Einführen der Lern -und Leistungsdokumentation:\nAusbildungsnachweis «Arbeitssicherheit, Gesundheitsschutz und Umweltschutz»",2,null,"X",null,null,null,null,"X",null,null,"X",null,null,null,null,null,null,null,null,null,null,null,"offen"]
[32,{"$f":"IF(Aktivitäten[[#This Row],[KW]]<31,\"2.Semester\",\"1. Semester\")","v":"1. Semester"},null,"Betriebliche Ausbildung","Einführen der Lern -und Leistungsdokumentation:\nEinführen Bildungsberichte",3,null,"X",null,null,null,null,"X",null,null,"X",null,null,null,null,null,null,null,null,null,null,null,"offen"]
[32,{"$f":"IF(Aktivitäten[[#This Row],[KW]]<31,\"2.Semester\",\"1. Semester\")","v":"1. Semester"},null,"Betriebliche Ausbildung","Einführen der Lern -und Leistungsdokumentation:\nSemseterzeugnisse und Erfahrungsnote",null,null,"X",null,null,null,null,"X",null,null,"X",null,null,null,null,null,null,null,null,null,null,null,"offen"]
[32,{"$f":"IF(Aktivitäten[[#This Row],[KW]]<31,\"2.Semester\",\"1. Semester\")","v":"1. Semester"},null,"Betriebliche Ausbildung","Einführung der Lern -und Leistungsdokumentation:\nKoRe",3,null,"X",null,null,null,null,"X",null,null,"X",null,null,null,null,null,null,null,null,null,null,null,"offen"]
[32,{"$f":"IF(Aktivitäten[[#This Row],[KW]]<31,\"2.Semester\",\"1. Semester\")","v":"1. Semester"},null,"Betriebliche Ausbildung","Informieren über das Unternehmen, die Produkte und Kunden",null,null,"X",null,null,null,null,"X",null,null,"X",null,null,null,null,null,null,null,null,null,null,null,"offen"]
[32,{"$f":"IF(Aktivitäten[[#This Row],[KW]]<31,\"2.Semester\",\"1. Semester\")","v":"1. Semester"},null,"Betriebliche Ausbildung","Informieren über die Lernzielkontrolle",3,null,"X",null,null,null,null,"X",null,null,"X",null,null,null,null,null,null,null,null,null,null,null,"offen"]
[35,{"$f":"IF(Aktivitäten[[#This Row],[KW]]<31,\"2.Semester\",\"1. Semester\")","v":"1. Semester"},null,"Betriebliche Ausbildung","Versetztungsstellenbesuch",null,null,"X","X","X","X",null,"X","X",null,null,null,null,null,null,null,null,null,null,null,null,null,"offen"]
[40,{"$f":"IF(Aktivitäten[[#This Row],[KW]]<31,\"2.Semester\",\"1. Semester\")","v":"1. Semester"},null,"Betriebliche Ausbildung","Besichtigung Werk ",null,null,"X",null,null,null,null,null,null,null,"X",null,null,null,null,null,null,null,null,null,null,null,"offen"]
[41,{"$f":"IF(Aktivitäten[[#This Row],[KW]]<31,\"2.Semester\",\"1. Semester\")","v":"1. Semester"},null,"Betriebliche Ausbildung","Führen der Lern -und Leistungsdokumentation:\nAusbildungsnachweis «Arbeitssicherheit, Gesundheitsschutz und Umweltschutz»",2,null,"X","X","X","X",null,"X","X",null,"X",null,null,null,null,null,null,null,null,null,null,null,"offen"]
[41,{"$f":"IF(Aktivitäten[[#This Row],[KW]]<31,\"2.Semester\",\"1. Semester\")","v":"1. Semester"},null,"Betriebliche Ausbildung","Führen der Lern -und Leistungsdokumentation:\nKoRe",3,null,"X","X","X","X",null,"X",null,null,"X",null,null,null,null,null,null,null,null,null,null,null,"offen"]
[41,{"$f":"IF(Aktivitäten[[#This Row],[KW]]<31,\"2.Semester\",\"1. Semester\")","v":"1. Semester"},null,"Betriebliche Ausbildung","Führen der Lern -und Leistungsdokumentation:\nLerndokumentation",3,null,"X","X","X","X",null,"X",null,null,"X",null,null,null,null,null,null,null,null,null,null,null,"offen"]
[41,{"$f":"IF(Aktivitäten[[#This Row],[KW]]<31,\"2.Semester\",\"1. Semester\")","v":"1. Semester"},null,"Betriebliche Ausbildung","Kontrollieren der Lern- und Leistungsdokumentation",null,null,null,null,null,null,null,"X","X","X",null,null,null,null,null,null,null,null,null,null,null,null,"offen"]
[42,{"$f":"IF(Aktivitäten[[#This Row],[KW]]<31,\"2.Semester\",\"1. Semester\")","v":"1. Semester"},null,"Betriebliche Ausbildung","Führen der Lern -und Leistungsdokumentation:\nBesprechung Bildungsberichte",3,null,"X","X","X","X",null,"X",null,null,"X",null,null,null,null,null,null,null,null,null,null,null,"offen"]
[42,{"$f":"IF(Aktivitäten[[#This Row],[KW]]<31,\"2.Semester\",\"1. Semester\")","v":"1. Semester"},null,"Betriebliche Ausbildung","Kontaktaufnahme mit Eltern, Schule, Betrieb / Ist-Situation nach verlängerter Probezeit ",null,null,"X",null,null,null,null,"X",null,null,null,null,null,null,null,null,null,null,null,null,null,null,"offen"]
[44,{"$f":"IF(Aktivitäten[[#This Row],[KW]]<31,\"2.Semester\",\"1. Semester\")","v":"1. Semester"},null,"Betriebliche Ausbildung","Elternabend Probezeit",null,null,"X",null,null,null,null,"X",null,null,"X",null,null,null,null,null,null,null,null,null,null,null,"offen"]
[45,{"$f":"IF(Aktivitäten[[#This Row],[KW]]<31,\"2.Semester\",\"1. Semester\")","v":"1. Semester"},null,"Betriebliche Ausbildung","Versetztungsstellenbesuch",null,null,"X","X","X","X",null,"X","X",null,null,null,null,null,null,null,null,null,null,null,null,null,"offen"]
[46,{"$f":"IF(Aktivitäten[[#This Row],[KW]]<31,\"2.Semester\",\"1. Semester\")","v":"1. Semester"},null,"QV Vorbereitung","Praktische Arbeit «IPA»:\nKant. Prüfungsbehörden informieren Fachvorgesetzte",null,null,null,null,null,null,null,"X",null,"X",null,null,null,null,null,null,null,null,null,null,null,null,"offen"]
[46,{"$f":"IF(Aktivitäten[[#This Row],[KW]]<31,\"2.Semester\",\"1. Semester\")","v":"1. Semester"},null,"QV Vorbereitung","Praktische Arbeit «IPA»:\nPrüfungskandidaten melden gemäss kant. Prüfungsbehörden",null,null,null,null,null,null,null,"X",null,null,null,null,null,null,null,null,null,null,null,null,null,null,"offen"]
[46,{"$f":"IF(Aktivitäten[[#This Row],[KW]]<31,\"2.Semester\",\"1. Semester\")","v":"1. Semester"},null,"QV Vorbereitung","Teilprüfung «TP»:\nPrüfungskandidat/in melden gemäss kant. Prüfungs-\nbehörden",null,null,null,null,null,null,null,"X",null,null,null,null,null,null,null,null,null,null,null,null,null,null,"offen"]
[48,{"$f":"IF(Aktivitäten[[#This Row],[KW]]<31,\"2.Semester\",\"1. Semester\")","v":"1. Semester"},null,"Betriebliche Ausbildung","Anträge und Verrechnungen Kanton",null,null,null,null,null,null,null,"X",null,null,"X",null,null,null,null,null,null,null,null,null,null,null,"offen"]
[2,{"$f":"IF(Aktivitäten[[#This Row],[KW]]<31,\"2.Semester\",\"1. Semester\")","v":"2.Semester"},null,"Betriebliche Ausbildung","Führen der Lern -und Leistungsdokumentation:\nAusbildungsnachweis «Arbeitssicherheit, Gesundheitsschutz und Umweltschutz»",2,null,"X","X","X","X",null,"X","X",null,"X",null,null,null,null,null,null,null,null,null,null,null,"offen"]
[2,{"$f":"IF(Aktivitäten[[#This Row],[KW]]<31,\"2.Semester\",\"1. Semester\")","v":"2.Semester"},null,"Betriebliche Ausbildung","Führen der Lern -und Leistungsdokumentation:\nBildungsprogramm",3,null,"X","X","X","X",null,"X",null,null,"X",null,null,null,null,null,null,null,null,null,null,null,"offen"]
[2,{"$f":"IF(Aktivitäten[[#This Row],[KW]]<31,\"2.Semester\",\"1. Semester\")","v":"2.Semester"},null,"Betriebliche Ausbildung","Führen der Lern -und Leistungsdokumentation:\nKoRe",3,null,"X","X","X","X",null,"X",null,null,"X",null,null,null,null,null,null,null,null,null,null,null,"offen"]
[2,{"$f":"IF(Aktivitäten[[#This Row],[KW]]<31,\"2.Semester\",\"1. Semester\")","v":"2.Semester"},null,"Betriebliche Ausbildung","Führen der Lern -und Leistungsdokumentation:\nLerndokumentation",3,null,"X","X","X","X",null,"X",null,null,"X",null,null,null,null,null,null,null,null,null,null,null,"offen"]
[2,{"$f":"IF(Aktivitäten[[#This Row],[KW]]<31,\"2.Semester\",\"1. Semester\")","v":"2.Semester"},null,"QV Vorbereitung","Praktische Arbeit «IPA»:\nLernende informieren über IPA",null,null,null,null,null,"X",null,"X",null,"X","X",null,null,null,null,null,null,null,null,null,null,null,"offen"]
[2,{"$f":"IF(Aktivitäten[[#This Row],[KW]]<31,\"2.Semester\",\"1. Semester\")","v":"2.Semester"},null,"Betriebliche Ausbildung","Umfrage Weiterbeschäftigung nach der Lehre",null,null,null,null,null,"X",null,"X",null,null,null,null,null,null,null,null,null,null,null,null,null,null,"offen"]
[3,{"$f":"IF(Aktivitäten[[#This Row],[KW]]<31,\"2.Semester\",\"1. Semester\")","v":"2.Semester"},null,"Betriebliche Ausbildung","Führen der Lern -und Leistungsdokumentation:\nBesprechung Bildungsberichte",3,null,"X","X","X","X",null,"X",null,null,"X",null,null,null,null,null,null,null,null,null,null,null,"offen"]
[3,{"$f":"IF(Aktivitäten[[#This Row],[KW]]<31,\"2.Semester\",\"1. Semester\")","v":"2.Semester"},null,"Betriebliche Ausbildung","Kontrollieren der Lern- und Leistungsdokumentation",null,null,null,null,null,null,null,"X","X","X",null,null,null,null,null,null,null,null,null,null,null,null,"offen"]
[3,{"$f":"IF(Aktivitäten[[#This Row],[KW]]<31,\"2.Semester\",\"1. Semester\")","v":"2.Semester"},null,"QV Vorbereitung","Praktische Arbeit «IPA»:\nAufgabenstellung einreichen",null,null,null,null,null,"X",null,"X",null,"X","X",null,null,null,null,null,null,null,null,null,null,null,"offen"]
[4,{"$f":"IF(Aktivitäten[[#This Row],[KW]]<31,\"2.Semester\",\"1. Semester\")","v":"2.Semester"},null,"Betriebliche Ausbildung","Führen der Lern -und Leistungsdokumentation:\nBildungsprogramm",3,null,"X","X","X","X",null,"X",null,null,"X",null,null,null,null,null,null,null,null,null,null,null,"offen"]
[5,{"$f":"IF(Aktivitäten[[#This Row],[KW]]<31,\"2.Semester\",\"1. Semester\")","v":"2.Semester"},null,"QV Vorbereitung","Praktische Arbeit «IPA»:\nIPA im Betrieb durchführen",null,null,null,null,null,"X",null,null,null,"X","X",null,null,null,null,null,null,null,null,null,null,null,"offen"]
[5,{"$f":"IF(Aktivitäten[[#This Row],[KW]]<31,\"2.Semester\",\"1. Semester\")","v":"2.Semester"},null,"QV Vorbereitung","IPA Beginn Zeitfenster (bis KW 25)",null,null,null,null,"X","X",null,"X",null,"X",null,null,null,null,null,null,null,null,null,null,null,null,"offen"]
[5,{"$f":"IF(Aktivitäten[[#This Row],[KW]]<31,\"2.Semester\",\"1. Semester\")","v":"2.Semester"},null,"QV Vorbereitung","Teilprüfung «TP»:\nWahl der Prüfungsmodule bestimmen (Wahl-/Wahlpflicht)",null,null,null,"X",null,null,null,"X",null,null,null,null,null,null,null,null,null,null,null,null,null,null,"offen"]
[6,{"$f":"IF(Aktivitäten[[#This Row],[KW]]<31,\"2.Semester\",\"1. Semester\")","v":"2.Semester"},null,"QV Vorbereitung","Berufskenntnisse «BK» und Allgemeinbildender Unterricht «ABU»:\nVorbereitung durch den Kandidaten",null,null,null,null,null,"X",null,null,null,null,null,null,null,null,null,null,null,null,null,null,null,null,"offen"]
[6,{"$f":"IF(Aktivitäten[[#This Row],[KW]]<31,\"2.Semester\",\"1. Semester\")","v":"2.Semester"},null,"QV Vorbereitung","Besuch der externen Prüfungsexperten ",null,null,null,null,null,"X",null,null,null,null,"X",null,null,null,null,null,null,null,null,null,null,null,"offen"]
[6,{"$f":"IF(Aktivitäten[[#This Row],[KW]]<31,\"2.Semester\",\"1. Semester\")","v":"2.Semester"},null,"QV Vorbereitung","Praktische Arbeit «IPA»:\nPräsenation und Fachgespräch durchführen",null,null,null,null,null,"X",null,null,null,"X","X",null,null,null,null,null,null,null,null,null,null,null,"offen"]
[6,{"$f":"IF(Aktivitäten[[#This Row],[KW]]<31,\"2.Semester\",\"1. Semester\")","v":"2.Semester"},null,"Betriebliche Ausbildung","Führen der Lern -und Leistungsdokumentation:\nSemseterzeugnisse und Erfahrungsnote",5,null,"X","X","X","X",null,"X",null,null,"X",null,null,null,null,null,null,null,null,null,null,null,"offen"]
[6,{"$f":"IF(Aktivitäten[[#This Row],[KW]]<31,\"2.Semester\",\"1. Semester\")","v":"2.Semester"},null,"QV Vorbereitung","Teilprüfung «TP»:\nLernende informieren über Teilprüfung ",null,null,null,"X",null,null,null,"X",null,null,null,null,null,null,null,null,null,null,null,null,null,null,"offen"]
[6,{"$f":"IF(Aktivitäten[[#This Row],[KW]]<31,\"2.Semester\",\"1. Semester\")","v":"2.Semester"},null,"QV Vorbereitung","Berufskenntnisse «BK» und Allgemeinbildender Unterricht «ABU»:\nVorbereitung in der Schule",null,null,null,null,null,"X",null,null,null,null,null,null,null,null,null,null,null,null,null,null,null,null,"offen"]
[7,{"$f":"IF(Aktivitäten[[#This Row],[KW]]<31,\"2.Semester\",\"1. Semester\")","v":"2.Semester"},null,"QV Vorbereitung","Praktische Arbeit «IPA»:\nIPA bewerten",null,null,null,null,null,null,null,null,null,"X",null,null,null,null,null,null,null,null,null,null,null,null,"offen"]
[7,{"$f":"IF(Aktivitäten[[#This Row],[KW]]<31,\"2.Semester\",\"1. Semester\")","v":"2.Semester"},null,"QV Vorbereitung","Teilprüfung «TP»:\nInterne Prüfungsvorbereitungen",null,null,null,"X",null,null,null,"X",null,null,null,null,null,null,null,null,null,null,null,null,null,null,"offen"]
[10,{"$f":"IF(Aktivitäten[[#This Row],[KW]]<31,\"2.Semester\",\"1. Semester\")","v":"2.Semester"},null,"Betriebliche Ausbildung","Versetztungsstellenbesuch",null,null,"X","X","X","X",null,"X","X",null,null,null,null,null,null,null,null,null,null,null,null,null,"offen"]
[12,{"$f":"IF(Aktivitäten[[#This Row],[KW]]<31,\"2.Semester\",\"1. Semester\")","v":"2.Semester"},null,"QV Vorbereitung","Teilprüfung «TP»:\nExterne Prüfungsvorbereitungswoche",null,null,null,"X",null,null,null,"X",null,null,null,null,null,null,null,null,null,null,null,null,null,null,"offen"]
[16,{"$f":"IF(Aktivitäten[[#This Row],[KW]]<31,\"2.Semester\",\"1. Semester\")","v":"2.Semester"},null,"Betriebliche Ausbildung","Führen der Lern -und Leistungsdokumentation:\nAusbildungsnachweis «Arbeitssicherheit, Gesundheitsschutz und Umweltschutz»",2,null,"X","X","X","X",null,"X","X",null,"X",null,null,null,null,null,null,null,null,null,null,null,"offen"]
[16,{"$f":"IF(Aktivitäten[[#This Row],[KW]]<31,\"2.Semester\",\"1. Semester\")","v":"2.Semester"},null,"Betriebliche Ausbildung","Führen der Lern -und Leistungsdokumentation:\nBildungsprogramm",3,null,"X","X","X","X",null,"X",null,null,"X",null,null,null,null,null,null,null,null,null,null,null,"offen"]
[16,{"$f":"IF(Aktivitäten[[#This Row],[KW]]<31,\"2.Semester\",\"1. Semester\")","v":"2.Semester"},null,"Betriebliche Ausbildung","Führen der Lern -und Leistungsdokumentation:\nKoRe",3,null,"X","X","X","X",null,"X",null,null,"X",null,null,null,null,null,null,null,null,null,null,null,"offen"]
[16,{"$f":"IF(Aktivitäten[[#This Row],[KW]]<31,\"2.Semester\",\"1. Semester\")","v":"2.Semester"},null,"Betriebliche Ausbildung","Führen der Lern -und Leistungsdokumentation:\nLerndokumentation",3,null,"X","X","X","X",null,"X",null,null,"X",null,null,null,null,null,null,null,null,null,null,null,"offen"]
[17,{"$f":"IF(Aktivitäten[[#This Row],[KW]]<31,\"2.Semester\",\"1. Semester\")","v":"2.Semester"},null,"Betriebliche Ausbildung","Führen der Lern -und Leistungsdokumentation:\nBesprechung Bildungsberichte",3,null,"X","X","X","X",null,"X",null,null,"X",null,null,null,null,null,null,null,null,null,null,null,"offen"]
[17,{"$f":"IF(Aktivitäten[[#This Row],[KW]]<31,\"2.Semester\",\"1. Semester\")","v":"2.Semester"},null,"Betriebliche Ausbildung","Kontrollieren der Lern- und Leistungsdokumentation",null,null,null,null,null,null,null,"X","X","X",null,null,null,null,null,null,null,null,null,null,null,null,"offen"]
[18,{"$f":"IF(Aktivitäten[[#This Row],[KW]]<31,\"2.Semester\",\"1. Semester\")","v":"2.Semester"},null,"Betriebliche Ausbildung","Laufbahnberatung «Wie weiter nach der Berufslehre»",null,null,null,null,null,"X",null,"X",null,null,"X",null,null,null,null,null,null,null,null,null,null,null,"offen"]
[20,{"$f":"IF(Aktivitäten[[#This Row],[KW]]<31,\"2.Semester\",\"1. Semester\")","v":"2.Semester"},null,"Betriebliche Ausbildung","Versetztungsstellenbesuch",null,null,"X","X","X","X",null,"X","X",null,null,null,null,null,null,null,null,null,null,null,null,null,"offen"]
[22,{"$f":"IF(Aktivitäten[[#This Row],[KW]]<31,\"2.Semester\",\"1. Semester\")","v":"2.Semester"},null,"Betriebliche Ausbildung","Elternabend vor Lehrbeginn (19.00 Uhr)",null,null,"X",null,null,null,null,"X",null,null,"X",null,null,null,null,null,null,null,null,null,null,null,"offen"]
[22,{"$f":"IF(Aktivitäten[[#This Row],[KW]]<31,\"2.Semester\",\"1. Semester\")","v":"2.Semester"},null,"QV Vorbereitung","Beginn Zeitfenster Teilprüfung (bis Ende KW 27)",null,null,null,"X",null,null,null,null,null,null,"X",null,null,null,null,null,null,null,null,null,null,null,"offen"]
[22,{"$f":"IF(Aktivitäten[[#This Row],[KW]]<31,\"2.Semester\",\"1. Semester\")","v":"2.Semester"},null,"QV Vorbereitung","Teilprüfung «TP»:\nPersönliche Ausrüstung des Kandidaten vorbereiten gemäss kant. Prüfungsbehörden",null,null,null,"X",null,null,null,"X",null,null,null,null,null,null,null,null,null,null,null,null,null,null,"offen"]
[23,{"$f":"IF(Aktivitäten[[#This Row],[KW]]<31,\"2.Semester\",\"1. Semester\")","v":"2.Semester"},null,"QV Vorbereitung","Teilprüfung «TP»:\nTeilprüfung absolvieren gemäss kant. Prüfungsbehörden",null,null,null,"X",null,null,null,"X",null,null,null,null,null,null,null,null,null,null,null,null,null,null,"offen"]
[23,{"$f":"IF(Aktivitäten[[#This Row],[KW]]<31,\"2.Semester\",\"1. Semester\")","v":"2.Semester"},null,"QV Vorbereitung","Berufskenntnisse «BK» und Allgemeinbildender Unterricht «ABU»:\nPrüfung Berufskenntnis gemäss kant. Prüfungsbehörden",null,null,null,null,null,"X",null,null,null,null,null,null,null,null,null,null,null,null,null,null,null,null,"offen"]
[23,{"$f":"IF(Aktivitäten[[#This Row],[KW]]<31,\"2.Semester\",\"1. Semester\")","v":"2.Semester"},null,"QV Vorbereitung","Berufskenntnisse «BK» und Allgemeinbildender Unterricht «ABU»:\nPrüfungen Allgemeinbildender Unterricht gemäss kant. Prüfungsbehörden",null,null,null,null,null,"X",null,null,null,null,null,null,null,null,null,null,null,null,null,null,null,null,"offen"]
[25,{"$f":"IF(Aktivitäten[[#This Row],[KW]]<31,\"2.Semester\",\"1. Semester\")","v":"2.Semester"},null,"Betriebliche Ausbildung","Führen der Lern -und Leistungsdokumentation:\nAusbildungsnachweis «Arbeitssicherheit, Gesundheitsschutz und Umweltschutz»",2,null,"X","X","X","X",null,"X","X",null,"X",null,null,null,null,null,null,null,null,null,null,null,"offen"]
[25,{"$f":"IF(Aktivitäten[[#This Row],[KW]]<31,\"2.Semester\",\"1. Semester\")","v":"2.Semester"},null,"Betriebliche Ausbildung","Führen der Lern -und Leistungsdokumentation:\nBildungsprogramm",3,null,"X","X","X","X",null,"X",null,null,"X",null,null,null,null,null,null,null,null,null,null,null,"offen"]
[25,{"$f":"IF(Aktivitäten[[#This Row],[KW]]<31,\"2.Semester\",\"1. Semester\")","v":"2.Semester"},null,"Betriebliche Ausbildung","Diplomreise",null,null,null,null,null,"X",null,null,null,null,"X",null,null,null,null,null,null,null,null,null,null,null,"offen"]
[25,{"$f":"IF(Aktivitäten[[#This Row],[KW]]<31,\"2.Semester\",\"1. Semester\")","v":"2.Semester"},null,"Betriebliche Ausbildung","Führen der Lern -und Leistungsdokumentation:\nKoRe",3,null,"X","X","X","X",null,"X",null,null,"X",null,null,null,null,null,null,null,null,null,null,null,"offen"]
[25,{"$f":"IF(Aktivitäten[[#This Row],[KW]]<31,\"2.Semester\",\"1. Semester\")","v":"2.Semester"},null,"Betriebliche Ausbildung","Führen der Lern -und Leistungsdokumentation:\nLerndokumentation",3,null,"X","X","X","X",null,"X",null,null,"X",null,null,null,null,null,null,null,null,null,null,null,"offen"]
[25,{"$f":"IF(Aktivitäten[[#This Row],[KW]]<31,\"2.Semester\",\"1. Semester\")","v":"2.Semester"},null,"QV Vorbereitung","Notenformular und Arbeitszeugnis am Ende der Grundbildung:\nArbeitsszeugnis",6,null,null,null,null,"X",null,"X",null,null,"X",null,null,null,null,null,null,null,null,null,null,null,"offen"]
[25,{"$f":"IF(Aktivitäten[[#This Row],[KW]]<31,\"2.Semester\",\"1. Semester\")","v":"2.Semester"},null,"QV Vorbereitung","Notenformular und Arbeitszeugnis am Ende der Grundbildung:\nNotenformular für das Qualifikationsverfahren",6,null,null,null,null,"X",null,"X",null,null,"X",null,null,null,null,null,null,null,null,null,null,null,"offen"]
[25,{"$f":"IF(Aktivitäten[[#This Row],[KW]]<31,\"2.Semester\",\"1. Semester\")","v":"2.Semester"},null,"Betriebliche Ausbildung","Schwerpunktausbildung:\nEntscheiden, welche Handlungskompetenz/en aufgebaut werden",null,null,null,"X","X",null,null,"X","X","X","X",null,null,null,null,null,null,null,null,null,null,null,"offen"]
[26,{"$f":"IF(Aktivitäten[[#This Row],[KW]]<31,\"2.Semester\",\"1. Semester\")","v":"2.Semester"},null,"Betriebliche Ausbildung","Führen der Lern -und Leistungsdokumentation:\nBesprechung Bildungsberichte",3,null,"X","X","X","X",null,"X",null,null,"X",null,null,null,null,null,null,null,null,null,null,null,"offen"]
[26,{"$f":"IF(Aktivitäten[[#This Row],[KW]]<31,\"2.Semester\",\"1. Semester\")","v":"2.Semester"},null,"Betriebliche Ausbildung","Kontrollieren der Lern- und Leistungsdokumentation",null,null,null,null,null,null,null,"X","X","X",null,null,null,null,null,null,null,null,null,null,null,null,"offen"]
[26,{"$f":"IF(Aktivitäten[[#This Row],[KW]]<31,\"2.Semester\",\"1. Semester\")","v":"2.Semester"},null,"Berufsfachschule, inkl. Berufsmaturität","Semesterzeugnisse",5,null,"X","X","X","X",null,"X","X","X","X",null,null,null,null,null,null,null,null,null,null,null,"offen"]
[26,{"$f":"IF(Aktivitäten[[#This Row],[KW]]<31,\"2.Semester\",\"1. Semester\")","v":"2.Semester"},null,"Allgemein bildender Unterricht","Semesterzeugnisse",5,null,"X","X","X","X",null,"X","X","X","X",null,null,null,null,null,null,null,null,null,null,null,"offen"]
[27,{"$f":"IF(Aktivitäten[[#This Row],[KW]]<31,\"2.Semester\",\"1. Semester\")","v":"2.Semester"},null,"Betriebliche Ausbildung","Aufräumaktion 5A",null,null,"X","X","X","X",null,"X","X",null,"X",null,null,null,null,null,null,null,null,null,null,null,"offen"]
[27,{"$f":"IF(Aktivitäten[[#This Row],[KW]]<31,\"2.Semester\",\"1. Semester\")","v":"2.Semester"},null,"Betriebliche Ausbildung","Diplomfeier",null,null,null,null,null,"X",null,null,null,null,"X",null,null,null,null,null,null,null,null,null,null,null,"offen"]
[27,{"$f":"IF(Aktivitäten[[#This Row],[KW]]<31,\"2.Semester\",\"1. Semester\")","v":"2.Semester"},null,"Betriebliche Ausbildung","Vorbereitung für neue BL",null,null,null,null,null,null,null,"X",null,null,null,null,null,null,null,null,null,null,null,null,null,null,"offen"]
[28,{"$f":"IF(Aktivitäten[[#This Row],[KW]]<31,\"2.Semester\",\"1. Semester\")","v":"2.Semester"},null,"Betriebliche Ausbildung","Beginn Lehrlingsrekrutierung",null,null,null,null,null,null,null,"X",null,null,null,null,null,null,null,null,null,null,null,null,null,null,"offen"]
[29,{"$f":"IF(Aktivitäten[[#This Row],[KW]]<31,\"2.Semester\",\"1. Semester\")","v":"2.Semester"},null,"Berufsfachschule, inkl. Berufsmaturität","Schullehrplan verfügbar",5,null,"X","X","X","X",null,"X","X","X","X",null,null,null,null,null,null,null,null,null,null,null,"offen"]
[29,{"$f":"IF(Aktivitäten[[#This Row],[KW]]<31,\"2.Semester\",\"1. Semester\")","v":"2.Semester"},null,"Berufsfachschule, inkl. Berufsmaturität","Schultage ",null,null,"X","X","X","X",null,"X","X","X","X",null,null,null,null,null,null,null,null,null,null,null,"offen"]
[29,{"$f":"IF(Aktivitäten[[#This Row],[KW]]<31,\"2.Semester\",\"1. Semester\")","v":"2.Semester"},null,"Allgemein bildender Unterricht","Schultage ",null,null,"X","X","X","X",null,"X","X","X","X",null,null,null,null,null,null,null,null,null,null,null,"offen"]
[29,{"$f":"IF(Aktivitäten[[#This Row],[KW]]<31,\"2.Semester\",\"1. Semester\")","v":"2.Semester"},null,"Berufsfachschule, inkl. Berufsmaturität","Schultage Berufsmaturität",null,null,"X","X","X","X",null,"X","X","X","X",null,null,null,null,null,null,null,null,null,null,null,"offen"]
[]
["Name",null,null,"…………………………………"]
["Vorname",null,null,"…………………………………"]
["Per. Nr.",null,null,"…………………………………"]
["Betrieb",null,null,"…………………………………"]
[null,null,null,"…………………………………"]
[]
["Lehrbeginn",null,null,"…………………………………"]

{"sheet":"Legende","index":1,"n_rows":18,"n_cols":11,"rows_kept":18,"cut":false,"hidden":false,"merged":[[5,9,5,10]]}
[]
[]
[]
[]
[]
[null,"Thema",null,"Beruf",null,"Lehrjahr",null,"Status",null,"Register LLD"]
[null,"Absenzen",null,"Anlagen- und Apparatebauer EFZ",null,"1. Lehrjahr",null,"offen",null,2,"Arbeitssicherheit, Gesundheitsschutz\nund Umweltschutz/Ressourceneffizienz"]
[null,"Information über das Unternehmen",null,"Automatiker EFZ",null,"2. Lehrjahr",null,"pendent",null,3,"Betrieb"]
[null,"Lern- und Leistungsdokumentation",null,"Automatikmonteur EFZ",null,"3. Lehrjahr",null,"abgeschlossen",null,4,"ÜK"]
[null,"Arbeitssicherheit und Gesundheitsschutz",null,"Elektroniker EFZ",null,"4. Lehrjahr",null,"in Verzug",null,5,"Berufsfachschule"]
[null,"Betriebliche Ausbildung",null,"Kauffrau Prof. E EFZ",null,null,null,null,null,6,"Lehrvertrag und Dokumente für die Bewerbung"]
[null,"Berufsfachschule, inkl. Berufsmaturität",null,"Kauffrau Prof. G EFZ",null,null,null,null,null,7,"freies Feld"]
[null,"Allgemein bildender Unterricht",null,"Konstrukteur EFZ",null,null,null,null,null,8,"freies Feld"]
[null,"QV Vorbereitung",null,"Polymechaniker EFZ"]
[null,"freies Feld",null,"Produktionsmechaniker EFZ"]
[null,"freies Feld",null,"Mechanikpraktiker EBA"]
[null,null,null,"freies Feld"]
[null,null,null,"freies Feld"]